Workbook

Sheet LISTE
A2: CLIENT | B2: FACTURE | C2: DATE | D2: MONTANT | E2: PAYÉ | F2: SOLDE
A4: =+Feuil11!A5 -> ABC | B4: =+Feuil11!E4 -> 1 | C4: =+Feuil11!E5 -> 31/01/2017 | D4: =+Feuil11!E16 -> 1149.75 | F4: =+D4-E4 -> 1149.75
A5: DEF | B5: 2 | C5: 01/02/2017 | D5: 574.88 | F5: =+D5-E5 -> 574.88
A6: GHI | B6: 3 | C6: 02/02/2017 | D6: 862.31 | F6: =+D6-E6 -> 862.31
A7: atinauJ | B7: 4 | C7: 2017-02-10 | D7: 123.45

Sheet FACTURE
A1: LOGO | H1: =+E4+1 -> 6
A4: CLIENT | D4: FACTURE | E4: 5
D5: DATE
A11: VENTE
D13: TPS
D14: TVQ | E14: =+E11*9.975% -> 0
D16: TOTAL | E16: =SUM(E11:E15) -> 0

Sheet atinauJ_4
A1: LOGO
A4: CLIENT | D4: FACTURE | E4: 4
A5: atinauJ | D5: DATE | E5: 2017-02-10
A11: VENTE | E11: 123.45
D13: TPS | E13: =+E11*0.05 -> 6.1725
D14: TVQ | E14: =+E11*9.975% -> 12.3141375
D16: TOTAL | E16: =SUM(E11:E15) -> 141.9366375

Sheet Feuil13
A1: LOGO
A4: CLIENT | D4: FACTURE | E4: 3
A5: GHI | D5: DATE | E5: 02/02/2017
A11: VENTE | E11: 750
D13: TPS | E13: =+E11*0.05 -> 37.5
D14: TVQ | E14: =+E11*9.975% -> 74.8125
D16: TOTAL | E16: =SUM(E11:E15) -> 862.3125

Sheet Feuil12
A1: LOGO
A4: CLIENT | D4: FACTURE | E4: 2
A5: DEF | D5: DATE | E5: 01/02/2017
A11: VENTE | E11: 500
D13: TPS | E13: =+E11*0.05 -> 25
D14: TVQ | E14: =+E11*9.975% -> 49.875
D16: TOTAL | E16: =SUM(E11:E15) -> 574.875

Sheet Feuil11
A1: LOGO
A4: CLIENT | D4: FACTURE | E4: 1
A5: ABC | D5: DATE | E5: 31/01/2017
A11: VENTE | E11: 1000
D13: TPS | E13: =+E11*0.05 -> 50
D14: TVQ | E14: =+E11*9.975% -> 99.75
D16: TOTAL | E16: =SUM(E11:E15) -> 1149.75
